bitfinex/quotes_ETHUSD_20240719
["timestamp","ask_amount","ask_price","bid_price","bid_amount"]
[1721375140350,0.55,3404.7,3403.9,0.42479984]
[1721375140658,5.80571,3404.7,3403.6,2.3807]
[1721375141002,2.93737,3404.5,3403.6,2.3807]
[1721375141280,0.55,3404.4,3403.8,2.93788]
[1721375141683,0.55,3404.4,3403.8,3.763543]
[1721375141921,0.55,3404.4,3403.9,2.93779]
[1721375142047,0.5957501,3404.7,3403.8,0.825663]
[1721375142251,0.89362516,3404.9,3403.6,2.3807]
[1721375142252,3.0,3404.9,3404.3,2.93745]
[1721375142445,0.55,3404.8,3404.3,2.93745]
[1721375143821,2.93687,3405.0,3404.3,2.93745]
[1721375143822,0.55,3404.9,3404.3,2.93745]
[1721375144107,0.55,3404.9,3404.4,2.93732]
[1721375144304,0.55,3405.0,3404.4,2.93732]
[1721375144808,0.55,3405.0,3404.6,2.93719]
[1721375145003,3.55,3405.2,3404.6,2.93719]
[1721375145407,0.55,3405.2,3404.6,2.93719]
[1721375145572,3.55,3405.2,3404.6,2.93719]
[1721375146079,3.55,3405.2,3404.4,2.93736]
[1721375146283,4.0824401,3405.2,3404.5,2.93728]
[1721375147471,0.5957501,3405.1,3404.5,2.93728]
[1721375147773,0.55,3405.0,3404.5,2.93728]
[1721375148937,0.5957501,3405.5,3404.4,2.93732]
[1721375149148,0.5957501,3405.7,3405.0,2.93684]
[1721375149447,0.5957501,3405.7,3404.5,0.293732]
[1721375149448,1.48937526,3406.0,3404.6,2.4165]
[1721375149647,2.4013,3406.2,3404.6,2.4165]
[1721375149798,0.5957501,3406.2,3405.4,2.93644]
[1721375149989,3.5315501,3406.3,3405.4,2.93644]
[1721375150196,3.5314101,3406.4,3405.3,2.4165]
[1721375150440,0.5957501,3406.4,3405.7,2.93625]
[1721375150754,0.5957501,3406.4,3405.4,2.9365]
[1721375150755,3.5314001,3406.4,3405.6,2.93627]
[1721375151752,0.5957501,3406.3,3405.7,2.93622]
[1721375152044,0.5957501,3406.4,3405.8,2.93614]
[1721375152551,0.5957501,3406.4,3405.6,2.9363]
[1721375152720,2.93582,3406.2,3405.4,2.93649]
[1721375152899,2.93582,3406.2,3404.6,2.93713]
[1721375152900,2.93618,3405.8,3404.6,2.93713]
[1721375153100,2.93618,3405.8,3404.5,3.230942]
[1721375153101,3.4863,3405.7,3404.5,3.230942]
[1721375153743,0.55,3405.7,3405.0,2.93683]
[1721375153929,0.55,3405.7,3404.7,2.9371]
[1721375154133,3.0,3406.1,3405.5,2.93635]
[1721375154134,0.55,3405.9,3405.5,2.93635]
[1721375154466,0.55,3406.0,3405.5,2.93635]
[1721375154619,0.55,3406.0,3405.3,2.93659]
[1721375155428,1.1457501,3406.0,3405.3,2.93659]
[1721375155656,1.1457501,3406.0,3405.2,2.93668]
[1721375155657,0.55,3406.0,3405.2,2.93668]
[1721375155858,0.55,3406.0,3405.5,2.93641]
[1721375156044,3.55,3406.1,3405.7,2.93622]
[1721375156767,3.55,3406.1,3405.5,2.93641]
[1721375156922,3.55,3406.1,3405.6,2.93633]
[1721375157121,0.55,3406.1,3405.6,2.93633]
[1721375157659,0.55,3406.2,3405.6,2.93633]
[1721375158023,0.55,3406.2,3405.4,2.9365]
[1721375158024,3.5957501,3406.3,3405.9,2.93606]
[1721375158280,0.5957501,3406.5,3406.0,2.93599]
[1721375158477,0.5957501,3406.8,3406.2,2.93581]
[1721375158761,0.5957501,3406.8,3405.7,2.4028]
[1721375158962,0.90238104,3406.9,3405.9,2.93607]
[1721375159141,0.30663094,3406.9,3405.9,2.93607]
[1721375159342,1.05622214,3407.2,3406.5,2.93549]
[1721375159543,5.34953,3407.6,3406.5,2.93549]
[1721375159544,0.5957501,3407.4,3406.5,2.93549]
[1721375159769,0.5957501,3407.4,3406.1,2.93585]
[1721375159942,5.9452801,3407.6,3406.2,0.29945591]
[1721375160156,3.0106501,3407.6,3406.9,2.93521]
[1721375160354,2.4149,3407.6,3406.9,2.93521]
[1721375161580,5.4149,3407.6,3406.9,2.93521]
[1721375161899,0.55,3407.5,3407.0,2.93506]
[1721375162190,5.93447,3407.8,3406.7,2.93537]
[1721375162480,2.93462,3407.6,3406.8,2.93528]
[1721375162878,3.0,3407.5,3406.8,2.93528]
[1721375163302,3.0,3407.5,3406.9,2.93521]
[1721375163583,0.55,3407.4,3406.9,2.93521]
[1721375163789,0.55,3407.4,3406.7,2.93538]
[1721375164088,0.55,3407.4,3406.8,2.93529]
[1721375164769,3.0,3407.6,3406.6,2.93547]
[1721375164770,0.55,3407.5,3406.9,2.9352]
[1721375165282,2.3955,3408.0,3406.2,3.23522591]
[1721375165283,0.5957501,3408.2,3408.1,5.86836]
[1721375165517,0.89920005,3409.5,3408.7,8.96432]
[1721375165837,1.79826637,3410.4,3408.2,2.9341]
[1721375165838,0.30654843,3410.2,3409.0,6.03036]
[1721375165966,3.0932667,3411.0,3409.7,2.93274]
[1721375165967,2.93197,3410.7,3409.7,2.93274]
[1721375166172,2.93197,3410.7,3409.8,2.93272]
[1721375166173,0.5994667,3410.7,3409.8,2.93272]
[1721375166368,0.5994667,3410.7,3409.5,2.93289]
[1721375166369,2.93196,3410.7,3409.5,2.93289]
[1721375166584,5.4255,3411.0,3409.2,2.93323]
[1721375166912,5.4255,3411.0,3409.3,0.05865105]
[1721375167216,2.93212,3410.5,3409.5,2.9329]
[1721375167510,2.93204,3410.6,3409.8,2.93271]
[1721375167672,2.4938,3411.0,3409.6,2.93282]
[1721375167875,1.7,3410.9,3409.4,2.93303]
[1721375168173,2.93267,3409.9,3408.9,2.93342]
[1721375168414,2.93267,3409.9,3408.3,2.2957]
[1721375168415,2.93267,3409.9,3408.5,2.93383]
[1721375168573,3.0,3409.8,3408.5,3.456783]
[1721375168771,2.9329,3409.6,3408.6,2.93372]
[1721375169017,3.55,3409.5,3408.5,0.522953]
[1721375169172,3.55,3409.5,3408.3,5.3927]
[1721375169173,0.55,3409.5,3408.3,5.3927]
[1721375169373,0.55,3409.5,3408.4,6.03084]
[1721375169669,2.93227,3410.4,3409.2,2.93322]
[1721375169670,0.55,3409.6,3409.2,2.93322]
[1721375170084,0.55,3409.6,3408.4,6.03084]
[1721375170085,0.55,3409.6,3409.4,2.933]
[1721375173743,0.55,3409.6,3409.2,2.93323]
[1721375173915,0.55,3409.6,3409.3,0.586663]
[1721375174242,0.55,3409.6,3409.2,2.93323]
[1721375174445,2.93307,3409.4,3408.5,2.93382]
[1721375174767,0.55,3409.6,3408.0,0.05866463]
[1721375175239,0.55,3409.7,3409.0,2.93339]
[1721375175604,0.55,3409.7,3408.7,6.03065]
[1721375175805,0.55,3409.7,3409.3,2.93308]
[1721375176057,3.0,3410.1,3409.3,2.93308]
[1721375176058,0.55,3410.0,3409.3,2.93308]
[1721375177100,0.55,3410.0,3408.9,2.93348]
[1721375177332,2.9327,3409.9,3408.9,2.93348]
[1721375177732,5.48246,3410.1,3409.0,2.93338]
[1721375177926,2.93273,3409.8,3409.1,0.3536445]
[1721375178135,2.93281,3409.7,3408.8,3.536595]
[1721375178452,2.93281,3409.7,3407.9,3.0]
[1721375178453,2.93315,3409.3,3408.5,2.93381]
[1721375178807,2.93315,3409.3,3408.3,2.934]
[1721375179012,2.93324,3409.2,3408.4,2.93392]
[1721375179534,2.93311,3409.4,3408.5,2.93383]
[1721375179748,0.55,3409.3,3408.6,0.586783]
[1721375179905,2.55,3410.1,3409.2,2.93323]
[1721375179906,2.93264,3409.9,3409.2,2.93323]
[1721375180105,2.9328,3409.7,3408.9,2.2651]
[1721375180328,2.93293,3409.6,3408.7,2.93366]
[1721375180906,2.93293,3409.6,3408.8,2.93357]
[1721375181143,0.55,3409.5,3408.8,2.93357]
[1721375181353,0.55,3409.5,3408.9,0.293357]
[1721375181517,0.55,3409.5,3408.9,3.226837]
[1721375181728,3.48283,3409.7,3408.9,3.226837]
[1721375182142,2.93291,3409.6,3408.9,0.293357]
[1721375182430,3.48298,3409.5,3408.9,0.293357]
[1721375182641,2.93298,3409.5,3408.9,0.293357]
[1721375182847,2.93332,3409.1,3408.2,5.19916]
[1721375183047,2.93332,3409.1,3408.4,2.93392]
[1721375183432,2.93315,3409.3,3408.4,2.93386]
[1721375183634,0.55,3409.2,3408.5,0.519896]
[1721375183873,0.55,3409.2,3408.5,3.453676]
[1721375184029,5.93291,3409.6,3408.6,2.93374]
[1721375184230,0.55,3409.5,3408.8,2.93352]
[1721375184874,3.48298,3409.5,3408.6,2.93374]
[1721375185175,3.48298,3409.5,3408.7,0.6387546]
[1721375185848,3.48298,3409.5,3408.7,3.5724046]
[1721375186455,2.93306,3409.4,3408.7,0.6387546]
[1721375187390,2.93316,3409.3,3408.7,0.6387546]
[1721375187602,3.48303,3409.5,3408.7,3.5724046]
[1721375187762,3.48303,3409.5,3408.8,0.40923006]
[1721375188873,2.93252,3410.1,3409.0,2.93336]
[1721375189083,2.93263,3409.9,3409.1,2.93328]
[1721375189508,2.93272,3409.8,3408.9,2.93344]
[1721375189680,2.93272,3409.8,3409.0,3.56102301]
[1721375190401,2.93272,3409.8,3409.1,2.93332]
[1721375191677,2.93308,3409.4,3409.0,0.62762301]
[1721375191873,2.93294,3409.6,3408.7,2.93366]
[1721375192109,2.93294,3409.6,3408.8,2.93356]
[1721375192110,0.55,3409.5,3408.8,2.93356]
[1721375192808,0.55,3409.5,3408.9,2.93348]
[1721375193581,2.3453,3410.3,3408.5,0.519896]
[1721375193582,2.93212,3410.5,3409.7,2.93279]
[1721375193783,2.93201,3410.7,3409.8,3.28462474]
[1721375193980,2.93187,3410.8,3409.9,2.93261]
[1721375194286,7.45,3411.4,3410.2,2.93231]
[1721375194287,2.93158,3411.2,3410.2,2.93231]
[1721375194602,2.93175,3411.0,3410.0,2.93248]
[1721375194918,2.93175,3411.0,3410.1,3.7973579]
[1721375195683,2.93169,3411.0,3410.1,0.8649279]
[1721375195881,2.93192,3410.8,3410.1,0.8649279]
[1721375196129,8.29991,3411.5,3410.1,0.8649279]
[1721375196130,2.93195,3410.7,3410.1,0.8649279]
[1721375196427,2.93195,3410.7,3409.8,3.225979]
[1721375196624,2.93195,3410.7,3409.9,2.93261]
[1721375197189,0.55,3410.6,3409.9,2.93261]
[1721375197482,2.93161,3411.1,3410.2,2.9323]
[1721375197687,0.55,3411.0,3410.3,0.586483]
[1721375198544,2.48161,3411.1,3410.3,3.518763]
[1721375198934,2.48161,3411.1,3410.3,2.93228]
[1721375199316,2.9317,3411.0,3410.1,2.93242]
[1721375199521,2.9317,3411.0,3410.0,2.93253]
[1721375199522,2.93185,3410.9,3410.0,2.93253]
[1721375199710,2.9317,3411.0,3410.0,2.93253]
[1721375199711,2.93188,3410.8,3410.0,2.93253]
[1721375200054,2.93188,3410.8,3410.1,2.93245]
[1721375200211,2.93188,3410.8,3410.2,0.586498]
[1721375200544,2.9317,3411.0,3410.2,0.586498]
[1721375200545,2.9317,3411.0,3410.2,3.518848]
[1721375201822,2.93179,3410.9,3410.2,0.586498]
[1721375202149,3.0,3411.2,3409.8,3.225979]
[1721375202150,2.93186,3410.8,3409.8,3.225979]
[1721375202446,2.93186,3410.8,3409.1,2.93331]
[1721375202447,2.8028,3410.7,3409.1,2.93331]
[1721375202624,2.8028,3410.7,3409.0,2.325]
[1721375202625,2.93253,3410.1,3409.2,2.93322]
[1721375202827,5.8028,3410.7,3409.0,5.2584]
[1721375203047,2.93268,3409.9,3409.0,2.325]
[1721375203206,2.93268,3409.9,3409.2,2.93323]
[1721375203542,2.93247,3410.1,3409.3,2.93314]
[1721375203931,2.9323,3410.3,3409.1,0.525848]
[1721375204125,2.93213,3410.5,3409.7,2.93274]
[1721375204620,5.93199,3410.7,3409.8,2.93268]
[1721375204948,2.93203,3410.6,3409.8,2.93268]
[1721375205158,3.0,3410.7,3409.6,2.93287]
[1721375205312,5.36155,3411.1,3409.5,2.93297]
[1721375205313,2.93229,3410.3,3409.5,2.93297]
[1721375205517,2.93222,3410.4,3409.6,0.293297]
[1721375206021,2.93222,3410.4,3409.7,2.9328]
[1721375207261,2.9323,3410.3,3409.6,0.293297]
[1721375207436,2.93212,3410.5,3409.6,0.293297]
[1721375207751,3.48175,3411.0,3409.6,0.293297]
[1721375207957,2.93244,3410.2,3409.4,2.93306]
[1721375208122,2.93244,3410.2,3409.5,2.93297]
[1721375208333,2.93244,3410.2,3409.0,5.422]
[1721375208334,2.93225,3410.4,3409.6,2.93289]
[1721375209214,2.93207,3410.6,3409.8,2.9327]
[1721375209647,2.93213,3410.5,3409.8,2.9327]
[1721375209825,2.93213,3410.5,3409.8,3.519259]
[1721375210340,3.0,3410.9,3409.0,2.325]
[1721375210341,2.93286,3409.7,3409.0,2.325]
[1721375210541,2.93286,3409.7,3409.0,5.2584]
[1721375210746,2.93256,3410.0,3409.0,5.2584]
[1721375210913,2.93278,3409.8,3409.0,5.2584]
[1721375211117,2.93256,3410.0,3409.1,0.819197]
[1721375211315,2.93282,3409.7,3409.1,0.819197]
[1721375212559,2.93299,3409.5,3409.1,0.819197]
[1721375212857,2.93299,3409.5,3408.5,3.453656]
[1721375212858,2.93329,3409.2,3408.5,2.781596]
[1721375213164,2.93329,3409.2,3408.5,5.715436]
[1721375213915,2.93308,3409.4,3408.6,2.93374]
[1721375214153,2.93308,3409.4,3408.5,2.781596]
[1721375214154,2.93308,3409.4,3408.7,2.93365]
[1721375214366,2.93308,3409.4,3408.8,0.8649086]
[1721375216358,2.93316,3409.3,3408.8,0.8649086]
[1721375216569,2.93316,3409.3,3408.6,2.93374]
[1721375216725,2.93324,3409.2,3408.5,2.781596]
[1721375216928,2.93324,3409.2,3408.5,5.715356]
[1721375217543,2.93316,3409.3,3408.5,2.781596]
[1721375217905,2.93349,3408.9,3408.1,5.36686]
[1721375218180,2.93349,3408.9,3408.1,2.4327]
[1721375218406,2.93349,3408.9,3408.2,2.93409]
[1721375219061,2.93349,3408.9,3408.3,2.93401]
[1721375219882,2.93336,3409.1,3408.3,2.93395]
[1721375220069,2.93336,3409.1,3408.4,0.830081]
[1721375220583,2.93341,3409.0,3408.4,0.830081]
[1721375222898,2.9335,3408.9,3408.4,0.830081]
[1721375223060,0.5994667,3409.1,3408.1,2.4327]
[1721375223262,2.93394,3408.4,3407.7,2.93451]
[1721375223622,0.5994667,3409.0,3407.8,0.81833]
[1721375223623,3.5328967,3409.0,3407.8,0.81833]
[1721375223757,2.93359,3408.8,3408.1,2.93411]
[1721375223952,2.93367,3408.7,3408.0,2.93426]
[1721375224687,2.93376,3408.6,3408.0,2.93426]
[1721375224901,2.93367,3408.7,3408.0,2.93426]
[1721375225407,2.93375,3408.6,3408.0,2.93426]
[1721375225710,2.93375,3408.6,3408.1,0.58687]
[1721375226980,2.93392,3408.4,3407.7,2.93445]
[1721375227287,2.93402,3408.3,3407.5,2.3141]
[1721375227867,2.93402,3408.3,3407.6,2.93455]
[1721375228068,2.93402,3408.3,3407.7,0.818341]
[1721375229699,2.9341,3408.2,3407.7,0.818341]
[1721375229914,2.9341,3408.2,3407.5,2.3141]
[1721375229915,2.93419,3408.1,3407.5,2.3141]
[1721375231020,2.9341,3408.2,3407.5,2.3141]
[1721375231167,2.93402,3408.3,3407.6,2.93458]
[1721375231371,2.93402,3408.3,3407.7,0.818337]
[1721375231798,2.93384,3408.5,3407.8,2.93444]
[1721375232168,2.93392,3408.4,3407.7,0.818337]
[1721375232895,2.93392,3408.4,3407.7,3.752847]
[1721375233081,2.93392,3408.4,3407.7,0.818337]
[1721375233403,2.93376,3408.6,3407.8,3.5411317]
[1721375233771,2.93384,3408.5,3407.8,3.5411317]
[1721375234798,3.55,3409.1,3407.9,2.93435]
[1721375234989,2.93343,3409.0,3407.8,0.6067117]
[1721375235201,2.93363,3408.8,3408.0,2.93424]
[1721375235510,2.93367,3408.7,3408.1,0.35409517]
[1721375236792,2.93355,3408.9,3408.1,3.28826517]
[1721375236971,2.93343,3409.0,3408.1,3.28826517]
[1721375236972,2.93358,3408.8,3408.1,3.28826517]
[1721375237713,0.55,3409.1,3408.1,0.35409517]
[1721375237872,5.40259,3409.3,3408.1,0.35409517]
[1721375237873,2.93358,3408.8,3408.1,0.35409517]
[1721375238074,2.93372,3408.7,3408.1,0.35409517]
[1721375238673,2.93372,3408.7,3408.1,3.28826517]
[1721375239016,2.93372,3408.7,3408.2,0.32882652]
[1721375242414,2.93375,3408.6,3408.2,0.32882652]
[1721375242576,2.93375,3408.6,3408.1,0.35409517]
[1721375243394,2.93363,3408.8,3408.1,3.28825517]
[1721375243582,2.93367,3408.7,3408.1,3.28825517]
[1721375243901,2.93367,3408.7,3408.1,0.35409517]
[1721375244095,2.93367,3408.7,3407.8,3.5411317]
[1721375244315,2.9335,3408.9,3407.8,3.5411317]
[1721375244316,2.93375,3408.6,3408.0,2.93426]
[1721375245484,2.93375,3408.6,3408.1,2.4966]
[1721375246818,2.93375,3408.6,3407.8,0.6067117]
[1721375247028,0.5994667,3408.9,3407.7,2.4966]
[1721375247181,0.55,3408.5,3407.7,2.4966]
[1721375247498,0.55,3408.5,3407.3,5.43146]
[1721375247499,2.93432,3408.0,3407.3,5.43146]
[1721375247681,2.93432,3408.0,3407.4,3.477926]
[1721375249486,2.93415,3408.2,3407.4,3.477926]
[1721375249687,2.93415,3408.2,3407.5,2.93462]
[1721375249883,1.1494667,3408.7,3407.8,2.93443]
[1721375249884,2.93384,3408.5,3407.8,2.93443]
[1721375250313,2.93384,3408.5,3407.9,2.4966]
[1721375250515,2.93375,3408.6,3408.0,0.543103]
[1721375252123,2.93385,3408.5,3408.0,0.543103]
[1721375252328,2.93385,3408.5,3407.9,2.4966]
[1721375252930,2.93385,3408.5,3407.8,2.93444]
[1721375253228,2.93385,3408.5,3407.6,2.9346]
[1721375253229,2.93403,3408.3,3407.6,2.9346]
[1721375255348,2.93403,3408.3,3407.5,2.2979]
[1721375255349,0.5994667,3408.2,3406.2,2.93574]
[1721375255506,0.5994667,3408.2,3406.1,0.91216323]
[1721375255507,2.93488,3407.3,3406.7,2.484]
[1721375256245,2.93496,3407.2,3406.4,0.44567685]
[1721375256543,2.9352,3407.0,3406.4,0.44567685]
[1721375259089,2.93496,3407.2,3406.5,0.58456069]
[1721375259325,2.93507,3407.1,3406.5,0.58456069]
[1721375260643,0.89920005,3407.7,3407.0,2.93511]
[1721375260644,3.5340067,3407.7,3407.0,2.93511]
[1721375260799,2.93442,3407.9,3407.2,2.9349]
[1721375261198,2.93444,3407.8,3407.2,2.9349]
[1721375261515,2.93444,3407.8,3407.1,0.524821]
[1721375261714,2.93444,3407.8,3407.1,3.459861]
[1721375261928,2.93436,3407.9,3407.2,3.5744271]
[1721375262708,2.93436,3407.9,3407.3,2.3045]
[1721375263022,2.93436,3407.9,3407.3,5.23935]
[1721375263950,8.0494667,3408.2,3407.4,0.05869283]
[1721375264146,8.0494667,3408.2,3407.3,2.3045]
[1721375264147,0.5994667,3408.2,3407.3,2.3045]
[1721375264464,0.5994667,3408.2,3406.1,12.77486523]
[1721375264465,3.5338867,3407.9,3407.0,2.93509]
[1721375264760,1.1494667,3407.8,3406.8,5.32044]
[1721375264912,2.93471,3407.5,3406.8,5.32044]
[1721375265950,2.93479,3407.4,3406.8,2.3852]
[1721375266242,2.93489,3407.3,3406.5,3.52012069]
[1721375266416,2.93489,3407.3,3406.6,3.51252207]
[1721375266957,2.93497,3407.2,3406.6,0.57707207]
[1721375267114,3.5341767,3407.5,3406.6,3.51253207]
[1721375267315,0.55,3407.4,3406.6,3.51253207]
[1721375267520,2.93495,3407.3,3406.6,3.51253207]
[1721375267927,0.55,3407.4,3406.6,3.51253207]
[1721375267928,2.93497,3407.2,3406.6,3.51253207]
[1721375268132,2.93497,3407.2,3406.6,0.57707207]
[1721375269455,2.93497,3407.2,3406.6,3.51254207]
[1721375269658,2.93497,3407.2,3406.7,0.63477028]
[1721375269821,3.48481,3407.4,3406.7,3.57015028]
[1721375270019,2.93487,3407.3,3406.7,3.57015028]
[1721375270572,2.93487,3407.3,3406.7,0.63477028]
[1721375270750,2.93487,3407.3,3406.5,2.9355]
[1721375270957,2.93496,3407.2,3406.5,2.9355]
[1721375273728,2.93489,3407.3,3406.6,2.93541]
[1721375274148,0.55,3407.4,3406.7,2.93539]
[1721375274371,3.4848,3407.4,3406.7,3.747539]
[1721375275541,2.93487,3407.3,3406.7,3.747539]
[1721375275763,2.93487,3407.3,3406.7,2.93539]
[1721375275936,2.93487,3407.3,3406.5,2.9355]
[1721375276641,2.93487,3407.3,3406.6,2.93546]
[1721375276967,2.93487,3407.3,3406.4,2.2506]
[1721375277168,0.55,3407.2,3406.2,2.93579]
[1721375277330,0.55,3407.2,3406.0,2.369]
[1721375277530,0.5994667,3407.1,3406.0,2.369]
[1721375277741,0.55,3407.0,3406.0,2.369]
[1721375277969,1.1494667,3407.0,3406.0,2.369]
[1721375278136,2.93549,3406.6,3406.0,2.369]
[1721375278337,2.93549,3406.6,3406.0,3.19313]
[1721375279453,2.93556,3406.5,3406.0,2.369]
[1721375280538,2.93556,3406.5,3405.6,5.35449]
[1721375280989,0.55,3406.4,3405.6,5.35449]
[1721375281289,3.4857,3406.4,3405.6,5.35449]
[1721375281439,3.4857,3406.4,3405.8,2.9361]
[1721375281440,0.55,3406.4,3405.8,2.9361]
[1721375281778,2.93556,3406.5,3405.8,2.9361]
[1721375284483,2.93556,3406.5,3405.9,2.93607]
[1721375285946,2.93569,3406.4,3405.6,2.93629]
[1721375286143,3.48569,3406.4,3405.7,2.93624]
[1721375286883,3.48569,3406.4,3405.7,3.523512]
[1721375287262,2.93582,3406.3,3405.5,2.93642]
[1721375287473,0.55,3406.4,3405.3,2.93659]
[1721375287474,2.93605,3406.0,3405.3,2.93659]
[1721375288071,2.93605,3406.0,3405.4,2.9365]
[1721375289579,2.93588,3406.2,3405.5,2.93636]
[1721375290153,2.93591,3406.1,3405.5,2.93636]
[1721375290353,3.48565,3406.4,3405.5,3.749862]
[1721375291363,2.93583,3406.2,3405.6,2.93632]
[1721375291563,2.93556,3406.5,3405.5,0.813502]
[1721375291767,2.93556,3406.5,3405.2,2.262]
[1721375292167,0.5994667,3406.8,3405.6,2.93633]
[1721375292478,2.93579,3406.3,3405.6,2.93633]
[1721375293554,2.93582,3406.2,3405.6,2.93633]
[1721375293758,2.93582,3406.2,3405.5,2.93641]
[1721375294461,2.93582,3406.2,3405.5,3.749902]
[1721375295167,2.93566,3406.4,3405.5,3.749902]
[1721375295168,2.93592,3406.1,3405.5,3.749902]
[1721375295355,2.93592,3406.1,3405.5,2.93641]
[1721375295969,2.93579,3406.3,3405.6,2.93633]
[1721375296176,0.55,3406.2,3405.6,2.93633]
[1721375297317,3.48582,3406.2,3405.6,2.93633]
[1721375298823,2.9357,3406.4,3405.7,2.93619]
[1721375303276,0.5994667,3406.8,3405.7,2.3461]
[1721375303475,3.86839014,3407.3,3406.2,2.93575]
[1721375303476,0.5994667,3407.0,3406.2,2.93575]
[1721375303731,0.5994667,3407.0,3405.8,2.93609]
[1721375303732,2.93566,3406.4,3405.8,2.93609]
[1721375304028,2.93574,3406.3,3405.8,0.821859]
[1721375304178,0.5994667,3406.9,3405.5,2.9364]
[1721375304179,2.93565,3406.4,3405.5,2.9364]
[1721375304380,2.93575,3406.3,3405.4,2.93651]
[1721375304606,2.9359,3406.1,3405.5,2.93642]
[1721375313545,3.5352167,3406.3,3405.5,2.93642]
[1721375313745,0.5994667,3406.2,3405.9,2.93603]
[1721375314042,0.5994667,3406.5,3405.9,2.93603]
[1721375314357,1.1494667,3406.4,3406.0,2.4853]
[1721375314499,0.55,3406.4,3406.0,2.4853]
[1721375314706,0.5994667,3406.6,3406.0,3.321057]
[1721375314927,0.5994667,3406.6,3406.0,5.42123]
[1721375315117,0.5994667,3406.5,3406.0,5.42123]
[1721375315541,0.5994667,3406.5,3406.1,2.9359]
[1721375315744,0.5994667,3406.5,3406.0,2.4853]
[1721375316108,0.5994667,3406.5,3406.2,2.93576]
[1721375316312,0.5994667,3406.7,3406.2,2.93576]
[1721375316510,0.5994667,3406.6,3406.2,2.93576]
[1721375317309,0.5994667,3406.6,3406.4,2.93562]
[1721375317510,0.5994667,3406.8,3406.2,2.93576]
[1721375318345,0.5994667,3406.8,3406.2,3.5614405]
[1721375318509,0.5994667,3406.8,3406.4,2.9356]
[1721375318711,0.5994667,3406.7,3406.4,2.9356]
[1721375318944,0.5994667,3406.7,3406.3,2.93573]
[1721375319655,0.5994667,3406.7,3406.5,2.9355]
[1721375319856,0.5994667,3406.8,3406.5,0.64969105]
[1721375320159,0.5994667,3407.2,3406.8,2.9353]
[1721375320454,0.5994667,3407.4,3407.2,2.93496]
[1721375320746,0.5994667,3407.5,3407.3,2.93486]
[1721375321149,0.5994667,3407.6,3407.3,2.93486]
[1721375321333,0.5994667,3407.5,3407.3,5.25976]
[1721375321519,0.5994667,3407.7,3407.3,5.25976]
[1721375322149,0.5994667,3407.7,3407.3,3.14438]
[1721375322345,1.19150021,3408.0,3407.3,3.14438]
[1721375322346,0.5994667,3408.0,3407.8,2.93444]
[1721375322547,0.89920005,3408.1,3407.8,2.93444]
[1721375322548,0.5994667,3408.1,3407.8,2.93444]
[1721375322751,1.19150021,3408.4,3407.8,2.93444]
[1721375322752,0.5994667,3408.2,3407.8,2.93444]
[1721375324025,0.5994667,3408.3,3407.8,2.93444]
[1721375324552,3.5994667,3408.4,3407.8,2.93444]
[1721375325065,3.83306005,3408.5,3408.0,2.3249]
[1721375325066,0.5994667,3408.5,3408.0,2.3249]
[1721375325223,0.5994667,3408.8,3408.2,2.93403]
[1721375325426,0.5994667,3409.0,3408.3,2.93399]
[1721375325760,2.93342,3409.0,3408.3,2.93399]
[1721375325981,2.93364,3408.8,3408.1,2.93417]
[1721375326249,2.9337,3408.7,3408.0,2.93426]
[1721375326717,0.55,3408.6,3408.0,2.93426]
[1721375327352,3.48377,3408.6,3408.0,2.93426]
[1721375328127,3.48377,3408.6,3407.8,2.93443]
[1721375328128,0.55,3408.6,3408.1,2.93417]
[1721375328311,0.55,3408.7,3408.1,2.93417]
[1721375328520,2.93376,3408.6,3407.9,2.9343]
[1721375329734,0.55,3409.0,3407.9,2.9343]
[1721375329735,2.93384,3408.5,3407.9,2.9343]
[1721375330189,0.5994667,3409.1,3406.9,3.097]
[1721375330190,2.93454,3407.7,3406.9,2.93517]
[1721375330362,2.93461,3407.6,3406.9,2.93517]
[1721375330787,2.9348,3407.4,3406.8,2.4188]
[1721375331081,2.9348,3407.4,3406.8,6.183064]
[1721375331249,2.93461,3407.6,3406.9,2.93521]
[1721375331448,2.93461,3407.6,3407.0,2.93512]
[1721375331449,0.55,3407.5,3407.0,2.93512]
[1721375332256,3.4847,3407.5,3406.8,6.183034]
[1721375333691,3.4847,3407.5,3406.8,5.35406]
[1721375333851,0.55,3407.5,3406.4,5.39568]
[1721375334050,2.93507,3407.1,3406.4,2.93558]
[1721375334849,2.93538,3406.8,3406.0,3.295845]
[1721375335988,2.93498,3407.2,3406.4,2.93562]
[1721375336203,2.93498,3407.2,3406.0,3.295845]
[1721375336204,2.93487,3407.3,3406.2,2.93581]
[1721375336403,2.93487,3407.3,3405.5,2.4016]
[1721375336404,2.93582,3406.2,3405.5,2.4016]
[1721375336592,0.65057081,3406.4,3405.6,0.24016]
[1721375336899,0.60110411,3406.4,3405.6,0.24016]
[1721375337681,3.53676411,3406.4,3405.6,0.24016]
[1721375338084,0.05110411,3406.4,3405.6,0.29888041]
[1721375338285,0.05110411,3406.4,3405.6,0.24016]
[1721375338504,0.05110411,3406.4,3405.7,0.264176]
[1721375338910,0.05110411,3406.4,3405.8,0.05871286]
[1721375339067,0.05110411,3406.4,3405.7,0.264176]
[1721375340016,2.93585,3406.2,3405.7,0.264176]
[1721375340306,0.05110411,3406.4,3405.5,2.4016]
[1721375340460,2.93593,3406.1,3405.5,2.4016]
[1721375341164,0.05110411,3406.4,3405.5,2.4016]
[1721375341591,2.93579,3406.3,3405.5,2.4016]